bitfinex/quotes_BTCUSD_20241223
["timestamp","ask_amount","ask_price","bid_price","bid_amount"]
[1734989513113,0.002,94323.0,94310.0,0.00106018]
[1734989513291,0.0809,94331.0,94322.0,0.212039]
[1734989513502,0.08105788,94331.0,94322.0,0.212039]
[1734989514178,0.00015788,94331.0,94322.0,0.212039]
[1734989514382,0.00115788,94331.0,94327.0,0.212027]
[1734989514578,0.00115788,94331.0,94323.0,0.212037]
[1734989515510,0.00115788,94331.0,94312.0,0.0498]
[1734989515713,0.00115788,94331.0,94323.0,0.001]
[1734989515882,0.02131699,94330.0,94323.0,0.001]
[1734989516103,0.00115788,94331.0,94323.0,0.001]
[1734989516507,0.00015788,94331.0,94318.0,0.424094]
[1734989516868,0.00015788,94331.0,94318.0,0.212046]
[1734989516869,0.00115788,94331.0,94318.0,0.212046]
[1734989517441,0.0809,94329.0,94312.0,0.001]
[1734989517641,0.10398632,94328.0,94313.0,0.03221494]
[1734989517850,0.10398632,94328.0,94321.0,0.0001708]
[1734989518122,0.212033,94325.0,94321.0,0.0001708]
[1734989518285,0.212033,94325.0,94323.0,0.001]
[1734989518436,0.212028,94327.0,94323.0,0.001]
[1734989518657,0.0809,94329.0,94321.0,0.0001708]
[1734989519041,0.00024328,94331.0,94321.0,0.0001708]
[1734989519246,0.00024328,94331.0,94322.0,0.24425749]
[1734989519457,0.00024328,94331.0,94324.0,0.212035]
[1734989519652,0.00024328,94331.0,94325.0,0.03221849]
[1734989519867,0.00024328,94331.0,94323.0,0.002]
[1734989519868,0.001,94329.0,94323.0,0.002]
[1734989520071,0.001,94329.0,94324.0,0.03221842]
[1734989520274,0.00024328,94331.0,94326.0,0.21203]
[1734989520481,0.00124328,94331.0,94327.0,0.03221668]
[1734989520680,0.00124328,94331.0,94328.0,0.24424194]
[1734989520888,0.00124328,94331.0,94329.0,0.03221465]
[1734989521131,0.00024328,94331.0,94330.0,0.24423565]
[1734989522196,0.00024328,94331.0,94330.0,0.03221465]
[1734989522413,0.00024328,94331.0,94322.0,0.212039]
[1734989522619,0.00024328,94331.0,94330.0,0.005]
[1734989522806,0.0138583,94348.0,94327.0,0.212027]
[1734989523013,0.0138583,94348.0,94329.0,0.212023]
[1734989523014,0.211985,94346.0,94329.0,0.212023]
[1734989523250,0.10398632,94345.0,94332.0,0.212014]
[1734989523397,0.21199,94344.0,94329.0,0.212022]
[1734989523598,0.10398632,94343.0,94329.0,0.212022]
[1734989523817,0.211994,94342.0,94326.0,0.212029]
[1734989524019,0.212006,94337.0,94321.0,0.00032868]
[1734989524168,0.00494131,94336.0,94330.0,0.005]
[1734989524374,0.00494131,94336.0,94321.0,0.00032868]
[1734989524610,0.21201,94335.0,94321.0,0.00032868]
[1734989524816,0.212039,94322.0,94321.0,0.00032868]
[1734989525016,0.21694939,94322.0,94321.0,0.00032868]
[1734989525428,0.32093571,94322.0,94321.0,0.00032868]
[1734989527368,0.55023571,94322.0,94321.0,0.00032868]
[1734989527571,0.212109,94291.0,94285.0,0.09244466]
[1734989527771,0.212109,94291.0,94285.0,0.09260257]
[1734989527915,0.00476093,94290.0,94286.0,0.09244466]
[1734989528341,0.212113,94289.0,94286.0,0.09244466]
[1734989528537,0.53297253,94289.0,94286.0,0.09244466]
[1734989529015,0.53297253,94289.0,94285.0,0.00415791]
[1734989529016,0.53297253,94289.0,94285.0,0.00015791]
[1734989529799,0.10874553,94289.0,94262.0,0.21150171]
[1734989530104,0.212145,94275.0,94265.0,0.042471]
[1734989530253,0.424291,94275.0,94252.0,0.212194]
[1734989530465,0.00471999,94274.0,94263.0,0.042482]
[1734989530874,0.212144,94276.0,94263.0,0.042482]
[1734989531402,0.212147,94274.0,94263.0,0.042482]
[1734989531651,0.00467764,94275.0,94263.0,0.042482]
[1734989531839,0.00472764,94273.0,94263.0,0.042482]
[1734989532075,0.00472764,94272.0,94263.0,0.043482]
[1734989532275,0.212154,94271.0,94263.0,0.043482]
[1734989532420,0.15,94281.0,94263.0,0.043482]
[1734989532617,0.001,94276.0,94263.0,0.043482]
[1734989532905,0.001,94276.0,94271.0,0.212152]
[1734989533058,0.00471247,94275.0,94274.0,0.0479]
[1734989533259,0.09530527,94299.0,94276.0,0.023]
[1734989533473,0.09530527,94299.0,94295.0,0.212099]
[1734989533667,0.095463,94299.0,94277.0,0.10398632]
[1734989533878,0.04290314,94298.0,94284.0,0.212123]
[1734989534254,0.212095,94297.0,94284.0,0.212123]
[1734989534481,0.21211,94291.0,94275.0,0.212144]
[1734989535085,0.21211,94291.0,94270.0,0.212154]
[1734989535256,0.21211,94291.0,94284.0,0.001]
[1734989535462,0.31485878,94291.0,94270.0,0.212154]
[1734989535658,0.212126,94284.0,94270.0,0.212154]
[1734989535871,0.212126,94284.0,94274.0,0.001]
[1734989536330,0.212126,94284.0,94270.0,0.212154]
[1734989536828,0.212126,94284.0,94275.0,0.004]
[1734989537029,0.212126,94284.0,94270.0,0.212154]
[1734989537236,0.212126,94284.0,94270.0,0.212155]
[1734989537439,0.215126,94284.0,94270.0,0.212155]
[1734989537641,0.002,94284.0,94281.0,0.424262]
[1734989537842,0.002,94284.0,94283.0,0.212127]
[1734989538696,0.003,94284.0,94283.0,0.212127]
[1734989538905,0.001,94284.0,94281.0,0.212131]
[1734989539110,0.001,94284.0,94276.0,0.212141]
[1734989539311,0.002,94284.0,94263.0,0.042482]
[1734989539513,0.12539792,94283.0,94264.0,0.21217]
[1734989539720,0.002,94284.0,94263.0,0.042482]
[1734989539721,0.001,94284.0,94263.0,0.042482]
[1734989539922,0.212095,94298.0,94282.0,0.212127]
[1734989540136,0.2121,94296.0,94282.0,0.212127]
[1734989540339,0.212102,94294.0,94282.0,0.212127]
[1734989540547,0.212125,94284.0,94283.0,0.006]
[1734989540754,0.10398632,94284.0,94258.0,0.212182]
[1734989540957,0.212153,94272.0,94263.0,0.043482]
[1734989541165,0.212163,94268.0,94263.0,0.001]
[1734989541698,0.31614132,94271.0,94263.0,0.001]
[1734989541901,0.10398632,94271.0,94263.0,0.001]
[1734989542154,0.10398632,94271.0,94260.0,0.212177]
[1734989542328,0.001,94268.0,94260.0,0.212177]
[1734989542551,0.001,94268.0,94257.0,0.042484]
[1734989542905,0.001,94268.0,94258.0,0.212183]
[1734989543321,0.03271413,94268.0,94257.0,0.042484]
[1734989543531,0.424326,94267.0,94257.0,0.042484]
[1734989543692,0.212163,94267.0,94257.0,0.042484]
[1734989544098,0.212163,94267.0,94256.0,0.12783306]
[1734989545342,0.03171413,94268.0,94257.0,0.212185]
[1734989545547,0.212165,94266.0,94256.0,0.12783306]
[1734989546327,0.212167,94265.0,94256.0,0.12783306]
[1734989546954,0.02828323,94267.0,94256.0,0.12783306]
[1734989547212,0.001,94266.0,94256.0,0.34002006]
[1734989547339,0.001,94266.0,94260.0,0.212177]
[1734989547549,0.001,94266.0,94261.0,0.04448806]
[1734989548307,0.31614232,94271.0,94256.0,0.34102006]
[1734989548491,0.001,94265.0,94256.0,0.34102006]
[1734989548833,0.001,94265.0,94256.0,0.12883306]
[1734989549036,0.212166,94266.0,94256.0,0.12883306]
[1734989549237,0.212185,94258.0,94256.0,0.12883306]
[1734989549805,0.212185,94258.0,94256.0,0.12783306]
[1734989549996,0.10398632,94257.0,94256.0,0.12783306]
[1734989550190,0.212226,94239.0,94218.0,0.00106105]
[1734989550481,0.31621232,94239.0,94238.0,0.00061217]
[1734989550609,0.43759588,94239.0,94238.0,0.00061217]
[1734989550812,0.39881232,94239.0,94238.0,0.00061217]
[1734989551503,0.39981232,94239.0,94238.0,0.00061217]
[1734989551700,0.39881232,94239.0,94238.0,0.00061217]
[1734989551916,0.212214,94245.0,94238.0,0.00061217]
[1734989551917,0.0826,94253.0,94238.0,0.00061217]
[1734989552123,0.0826,94264.0,94250.0,0.212201]
[1734989552317,0.31615832,94263.0,94238.0,0.00061217]
[1734989552534,0.003,94239.0,94238.0,0.00061217]
[1734989552864,0.10398632,94263.0,94238.0,0.00167315]
[1734989553116,0.001,94239.0,94238.0,0.21390115]
[1734989553440,0.006,94264.0,94260.0,0.212177]
[1734989553668,0.006,94264.0,94255.0,0.212188]
[1734989553798,0.006,94264.0,94242.0,0.212219]
[1734989553997,0.0020055,94264.0,94259.0,0.424359]
[1734989554201,0.212144,94276.0,94259.0,0.424359]
[1734989554408,0.10398632,94275.0,94259.0,0.424359]
[1734989554874,0.002,94263.0,94259.0,0.424359]
[1734989555091,0.002,94263.0,94243.0,0.10398632]
[1734989555398,0.0811,94290.0,94271.0,0.212154]
[1734989555600,0.10398632,94285.0,94271.0,0.212154]
[1734989556080,0.212125,94284.0,94271.0,0.212154]
[1734989556276,0.10398632,94283.0,94258.0,0.212183]
[1734989556651,0.10398632,94283.0,94258.0,0.21270967]
[1734989557057,0.10398632,94283.0,94264.0,0.212168]
[1734989557265,0.212143,94276.0,94264.0,0.212168]
[1734989557467,0.10398632,94275.0,94259.0,0.212179]
[1734989557819,0.10398632,94275.0,94259.0,0.42436]
[1734989558228,0.212147,94274.0,94259.0,0.42436]
[1734989558430,0.10398632,94274.0,94259.0,0.212181]
[1734989558659,0.01039863,94273.0,94259.0,0.212181]
[1734989558872,0.22254763,94273.0,94258.0,0.00052667]
[1734989559438,0.22254763,94273.0,94259.0,0.212181]
[1734989559643,0.212152,94272.0,94258.0,0.00052667]
[1734989559945,0.424355,94261.0,94258.0,0.00052667]
[1734989560315,0.212181,94259.0,94258.0,0.00252667]
[1734989560516,0.212181,94259.0,94258.0,0.00052667]
[1734989560517,0.39906732,94259.0,94258.0,0.00052667]
[1734989560893,0.57206732,94259.0,94258.0,0.00152667]
[1734989561095,0.68246595,94259.0,94258.0,0.00152667]
[1734989561298,0.68246595,94259.0,94258.0,0.00052667]
[1734989561507,0.54906732,94259.0,94258.0,0.00052667]
[1734989561706,0.55006732,94259.0,94258.0,0.00052667]
[1734989562034,0.54906732,94259.0,94258.0,0.00052667]
[1734989562455,0.55306732,94259.0,94258.0,0.00052667]
[1734989562655,0.55406732,94259.0,94258.0,0.00052667]
[1734989563407,0.55506732,94259.0,94258.0,0.00152667]
[1734989563627,0.55106732,94259.0,94258.0,0.00152667]
[1734989564115,0.55506732,94259.0,94258.0,0.00152667]
[1734989564864,0.55106732,94259.0,94258.0,0.00052667]
[1734989565115,0.55506732,94259.0,94258.0,0.00052667]
[1734989565608,0.67406732,94259.0,94258.0,0.00052667]
[1734989565815,0.212226,94239.0,94238.0,8.55e-05]
[1734989566097,0.31621232,94239.0,94238.0,8.55e-05]
[1734989566329,0.31621232,94239.0,94238.0,0.00024359]
[1734989567058,0.10398632,94239.0,94238.0,0.00024359]
[1734989567827,0.25398632,94239.0,94238.0,0.00124359]
[1734989568541,0.35788632,94239.0,94238.0,0.00124359]
[1734989568801,0.46388632,94239.0,94238.0,0.00224359]
[1734989569055,0.46388632,94239.0,94238.0,0.00124359]
[1734989569301,0.36488632,94239.0,94238.0,0.00224359]
[1734989569546,0.46488632,94239.0,94238.0,0.00224359]
[1734989569788,0.46388632,94239.0,94238.0,0.00124359]
[1734989570036,0.212253,94227.0,94226.0,0.0001708]
[1734989570278,0.50868872,94227.0,94226.0,0.0001708]
[1734989570526,0.53168872,94227.0,94226.0,0.0001708]
[1734989570760,0.173,94226.0,94182.0,0.0775]
[1734989571009,0.31624332,94225.0,94195.0,0.00015798]
[1734989571250,0.31624332,94225.0,94196.0,0.0212492]
[1734989571251,0.212293,94210.0,94196.0,0.0212492]
[1734989571564,0.10398632,94209.0,94196.0,0.0212492]
[1734989571565,0.10398632,94209.0,94197.0,0.21232]
[1734989571818,0.212257,94225.0,94196.0,0.212323]
[1734989572078,0.15,94226.0,94195.0,0.00015798]
[1734989572079,0.212298,94208.0,94195.0,0.00015798]
[1734989572362,0.10398632,94207.0,94195.0,0.21248198]
[1734989572826,0.10398632,94207.0,94199.0,0.212314]
[1734989573043,0.31628432,94207.0,94196.0,0.0212482]
[1734989573494,0.31628432,94207.0,94195.0,0.21348198]
[1734989573768,0.212288,94212.0,94195.0,0.00015798]
[1734989574231,0.15,94237.0,94196.0,0.001]
[1734989574439,0.15,94220.0,94196.0,0.001]
[1734989574708,0.31625732,94219.0,94204.0,0.212305]
[1734989575149,0.001,94212.0,94204.0,0.212305]
[1734989575719,0.001,94212.0,94208.0,0.212295]
[1734989575949,0.001,94212.0,94195.0,0.00215798]
[1734989576155,0.001,94212.0,94204.0,0.212303]
[1734989576579,0.10398632,94219.0,94205.0,0.212302]
[1734989576983,0.10598632,94219.0,94208.0,0.001]
[1734989577194,0.10598632,94219.0,94205.0,0.212302]
[1734989577385,0.10398632,94219.0,94204.0,0.001]
[1734989577818,0.10398632,94219.0,94205.0,0.212302]
[1734989578019,0.212273,94218.0,94205.0,0.212302]
[1734989578199,0.10398632,94217.0,94205.0,0.212302]
[1734989578608,0.10398632,94217.0,94205.0,0.424604]
[1734989579022,0.10398632,94217.0,94209.0,0.212292]
[1734989579237,0.002,94219.0,94214.0,0.212282]
[1734989579463,0.002,94219.0,94214.0,0.424564]
[1734989579591,0.001,94217.0,94215.0,0.21228]
[1734989579783,0.212245,94231.0,94219.0,0.21227]
[1734989580040,0.10398632,94230.0,94219.0,0.21227]
[1734989580447,0.10398632,94230.0,94223.0,0.21226]
[1734989581278,0.10398632,94230.0,94219.0,0.21227]
[1734989581409,0.10598632,94230.0,94218.0,0.212273]
[1734989581771,0.03182263,94229.0,94219.0,0.212271]
[1734989581965,0.10398632,94228.0,94219.0,0.212271]
[1734989582832,0.10398632,94228.0,94199.0,0.0828]
[1734989583035,0.10398632,94228.0,94187.0,0.2]
[1734989583036,0.212284,94214.0,94175.0,0.09286719]
[1734989583241,0.10398632,94213.0,94191.0,0.212333]
[1734989583454,0.10398632,94213.0,94195.0,0.21256738]
[1734989583455,0.212298,94208.0,94195.0,0.21256738]
[1734989583710,0.212288,94212.0,94195.0,0.21256738]
[1734989583711,0.424604,94205.0,94195.0,0.00024338]
[1734989583887,0.10398632,94207.0,94195.0,0.00024338]
[1734989583888,0.212323,94196.0,94195.0,0.00024338]
[1734989584095,0.49754162,94196.0,94195.0,0.00024338]
[1734989584504,0.49754162,94196.0,94195.0,0.00224338]
[1734989584912,0.49754162,94196.0,94195.0,0.00124338]
[1734989585269,0.52054162,94196.0,94195.0,0.00724338]
[1734989585476,0.62054162,94196.0,94195.0,0.00124338]
[1734989585680,0.62054162,94196.0,94175.0,0.0001706]
[1734989585681,0.1,94189.0,94175.0,0.0001706]
[1734989585899,0.212368,94176.0,94175.0,0.0001706]
[1734989586104,0.31635432,94176.0,94175.0,0.0001706]
[1734989586567,0.10398632,94176.0,94175.0,0.0001706]
[1734989586928,0.15,94187.0,94175.0,0.0011706]
[1734989587266,0.005,94189.0,94176.0,0.0213807]
[1734989587267,0.10398632,94186.0,94176.0,0.0213807]
[1734989587506,0.001,94189.0,94176.0,0.0213807]
[1734989587718,0.001,94189.0,94187.0,0.212343]
[1734989588339,0.212297,94208.0,94187.0,0.212343]
[1734989588555,0.08075765,94211.0,94194.0,0.212327]
[1734989588556,0.15452019,94207.0,94194.0,0.212327]
[1734989588798,0.10398632,94207.0,94185.0,0.0807]
[1734989589012,0.0316435,94206.0,94187.0,0.002]
[1734989589218,0.212314,94200.0,94187.0,0.002]
[1734989589433,0.10398632,94199.0,94181.0,0.212356]
[1734989589575,0.10398632,94199.0,94172.0,0.212376]
[1734989589770,0.002,94186.0,94176.0,0.212368]
[1734989589967,0.002,94186.0,94183.0,0.212351]
[1734989590179,0.14011018,94199.0,94183.0,0.212351]
[1734989590605,0.14011018,94199.0,94187.0,0.001]
[1734989590816,0.10398632,94199.0,94170.0,0.0103924]
[1734989591027,0.212318,94198.0,94183.0,0.212352]
[1734989591241,0.10398632,94197.0,94183.0,0.212352]
[1734989591443,0.212334,94191.0,94175.0,0.0001706]
[1734989591652,0.15714755,94197.0,94175.0,0.0001706]
[1734989591851,0.212323,94196.0,94175.0,0.0001706]
[1734989592167,0.212327,94194.0,94176.0,0.212368]
[1734989592369,0.15,94192.0,94175.0,0.0001706]
[1734989592604,0.424722,94179.0,94175.0,0.0001706]
[1734989592800,0.52870832,94179.0,94175.0,0.0001706]
[1734989593005,0.212366,94177.0,94175.0,0.0001706]
[1734989593359,0.31635232,94177.0,94175.0,0.0001706]
[1734989593770,0.10398632,94176.0,94175.0,0.0001706]
[1734989593988,0.14635505,94176.0,94175.0,0.0001706]
[1734989594201,0.29635505,94176.0,94175.0,0.0001706]
[1734989594414,0.39815505,94176.0,94175.0,0.0001706]
[1734989594631,0.1,94173.0,94162.0,0.0001708]
[1734989594852,0.1,94173.0,94128.0,1.253e-05]
[1734989594853,0.27698632,94169.0,94128.0,1.253e-05]
[1734989595093,0.1,94173.0,94128.0,0.21301242]
[1734989595094,0.212432,94148.0,94128.0,0.21301242]
[1734989595300,0.10398632,94147.0,94128.0,0.21301242]
[1734989595958,0.212436,94146.0,94128.0,0.21301242]
[1734989596167,0.21244,94144.0,94128.0,0.00053842]
[1734989596388,0.10398632,94143.0,94128.0,0.00053842]
[1734989597151,0.212445,94142.0,94128.0,0.00053842]
[1734989597359,0.212447,94141.0,94128.0,0.00053842]
[1734989598329,0.424895,94141.0,94128.0,0.00053842]
[1734989598540,0.212458,94137.0,94128.0,0.00153842]
[1734989598752,0.212468,94132.0,94128.0,0.00153842]
[1734989598998,0.212472,94130.0,94128.0,0.00353842]
[1734989599175,0.10398632,94129.0,94128.0,0.00353842]
[1734989599819,0.10398632,94129.0,94128.0,0.00053842]
[1734989600024,0.14010925,94129.0,94128.0,0.00153842]
[1734989600225,0.14010925,94129.0,94128.0,0.00253842]
[1734989600754,0.10398632,94129.0,94128.0,0.00253842]
[1734989601342,0.10398632,94129.0,94128.0,0.00053842]
[1734989601541,0.10598632,94129.0,94128.0,0.00053842]
[1734989601757,0.10898632,94129.0,94128.0,0.00053842]
[1734989601958,0.005,94129.0,94128.0,0.00053842]
[1734989602167,0.004,94129.0,94128.0,0.00053842]
[1734989602569,0.007,94129.0,94128.0,0.00053842]
[1734989603090,0.12593272,94129.0,94128.0,0.00053842]
[1734989603324,0.10598632,94129.0,94128.0,0.00053842]
[1734989603919,0.002,94129.0,94128.0,0.00053842]
[1734989604564,0.212451,94140.0,94128.0,0.00053842]
[1734989604730,0.002,94129.0,94128.0,0.00053842]
[1734989605089,0.003,94129.0,94128.0,0.00053842]
[1734989605216,0.001,94129.0,94128.0,0.00053842]
[1734989607926,0.212429,94149.0,94128.0,0.00053842]
[1734989608129,0.212433,94147.0,94129.0,0.212474]
[1734989608333,0.10398632,94146.0,94128.0,0.00053842]
[1734989608499,0.01039863,94145.0,94128.0,0.00053842]
[1734989608697,0.27698632,94129.0,94128.0,0.00253842]
[1734989608935,0.25398632,94129.0,94128.0,0.00853842]
[1734989609128,0.10398632,94129.0,94128.0,0.00053842]
[1734989609329,0.212462,94135.0,94128.0,0.00053842]
[1734989609547,0.20689863,94145.0,94129.0,0.212473]
[1734989609548,0.15,94145.0,94129.0,0.212473]
[1734989609742,0.15,94143.0,94129.0,0.212473]
[1734989610223,0.15,94143.0,94128.0,0.21301442]
[1734989610224,0.10398632,94142.0,94128.0,0.00053842]
[1734989610392,0.52887732,94142.0,94128.0,0.00053842]
[1734989610812,0.10398632,94142.0,94128.0,0.00053842]
[1734989611212,0.002,94129.0,94128.0,0.00153842]
[1734989611478,0.002,94129.0,94128.0,0.00053842]
[1734989611980,0.212467,94133.0,94128.0,0.00053842]
[1734989612947,0.424939,94131.0,94128.0,0.00053842]
[1734989613178,0.212474,94129.0,94128.0,0.00153842]
[1734989613435,0.31646032,94129.0,94128.0,0.00153842]
[1734989613935,0.31646032,94129.0,94128.0,0.00453842]
[1734989614181,0.10398632,94129.0,94128.0,0.00453842]
[1734989614432,0.10398632,94129.0,94128.0,0.00053842]
[1734989614686,0.10398632,94129.0,94128.0,0.00253842]
[1734989615171,0.10598632,94129.0,94128.0,0.00253842]
[1734989615407,0.10598632,94129.0,94128.0,0.00053842]
[1734989615623,0.10898632,94129.0,94128.0,0.00053842]
[1734989616089,0.10798632,94129.0,94128.0,0.00053842]
[1734989616580,0.25798632,94129.0,94128.0,0.00053842]
[1734989616812,0.26098632,94129.0,94128.0,0.00053842]
[1734989617065,0.25698632,94129.0,94128.0,0.00053842]
[1734989617307,0.28198632,94129.0,94128.0,0.00053842]
[1734989617549,0.47998632,94129.0,94128.0,4.2e-07]
[1734989618048,0.48198632,94129.0,94128.0,4.2e-07]
[1734989618549,0.47898632,94129.0,94128.0,4.2e-07]
[1734989618796,0.47998632,94129.0,94128.0,4.2e-07]
[1734989619296,0.47898632,94129.0,94128.0,4.2e-07]
[1734989619562,0.48598632,94129.0,94128.0,4.2e-07]
[1734989619818,0.212537,94101.0,94090.0,8.55e-05]
[1734989620074,0.31652332,94101.0,94100.0,0.00015758]
[1734989620600,0.39722332,94101.0,94100.0,0.00015758]
[1734989620862,0.54722332,94101.0,94100.0,0.00015758]
[1734989621368,0.57022332,94101.0,94100.0,0.00015758]
[1734989621651,0.57222332,94101.0,94100.0,0.00015758]
[1734989621889,0.67222332,94101.0,94100.0,0.00015758]
[1734989622133,0.54922332,94101.0,94100.0,0.00015758]
[1734989622625,0.55022332,94101.0,94100.0,0.00015758]
[1734989622845,0.46952332,94101.0,94100.0,0.00015758]
[1734989623077,0.46852332,94101.0,94100.0,0.00015758]
[1734989623586,0.46952332,94101.0,94100.0,0.00015758]
[1734989623827,0.47752332,94101.0,94100.0,0.00115758]
[1734989624069,0.46952332,94101.0,94100.0,0.00015758]
[1734989624355,0.47252332,94101.0,94100.0,0.00015758]
[1734989624579,0.49552332,94101.0,94100.0,0.00015758]
[1734989624836,0.49252332,94101.0,94100.0,0.00015758]
[1734989625080,0.273,94100.0,94061.0,0.212627]
[1734989625319,0.212599,94074.0,94068.0,0.0001577]
[1734989625592,0.212603,94072.0,94068.0,0.0001577]
[1734989625790,0.212607,94070.0,94068.0,0.0001577]
[1734989626036,0.10398632,94069.0,94068.0,0.0001577]
[1734989626517,0.25398632,94069.0,94068.0,0.0031577]
[1734989627256,0.27798632,94069.0,94068.0,0.0101577]
[1734989627503,0.32449378,94069.0,94068.0,0.0031577]
[1734989628001,0.32449378,94069.0,94068.0,0.0001577]
[1734989628002,0.33049378,94069.0,94068.0,0.0001577]
[1734989628223,0.42949378,94069.0,94068.0,0.0001577]
[1734989628487,0.43549378,94069.0,94068.0,0.0001577]
[1734989628951,0.43749378,94069.0,94068.0,0.0001577]
[1734989629421,0.43549378,94069.0,94068.0,0.0001577]
[1734989629668,0.42549378,94069.0,94068.0,0.0001577]
[1734989629902,0.212659,94048.0,94033.0,0.212689]
[1734989630133,0.212661,94046.0,94033.0,0.21321404]
[1734989630366,0.10398632,94045.0,94033.0,0.00052504]
[1734989630886,0.212614,94067.0,94034.0,0.212689]
[1734989631147,0.001,94048.0,94033.0,0.00552504]
[1734989631407,0.212642,94055.0,94033.0,0.00052504]
[1734989631647,0.10398632,94054.0,94035.0,0.212685]
[1734989631901,0.01039863,94053.0,94042.0,0.21267]
[1734989632146,0.10398632,94052.0,94036.0,0.212684]
[1734989632852,0.001,94045.0,94036.0,0.212684]
[1734989633091,0.001,94045.0,94041.0,0.212671]
[1734989633376,0.212617,94066.0,94041.0,0.0425355]
[1734989633624,0.10398632,94062.0,94042.0,0.00106335]
[1734989633864,0.212582,94081.0,94043.0,0.23008632]
[1734989634094,0.10398632,94080.0,94044.0,0.212666]
[1734989634324,0.212636,94058.0,94044.0,0.212666]
[1734989634573,0.001,94045.0,94044.0,0.212666]
[1734989635042,0.001,94045.0,94043.0,0.1261]
[1734989635536,0.001,94045.0,94041.0,0.005]
[1734989635777,0.21264,94056.0,94032.0,0.08]
[1734989635993,0.12525032,94055.0,94034.0,0.212689]
[1734989636214,0.212643,94054.0,94034.0,0.212689]
[1734989636422,0.212658,94048.0,94043.0,0.002]
[1734989637067,0.212658,94048.0,94044.0,8.56e-05]
[1734989638674,0.212651,94051.0,94044.0,0.0010856]
[1734989638926,0.212655,94049.0,94044.0,0.0010856]
[1734989639168,0.212659,94047.0,94044.0,0.0010856]
[1734989639420,0.10398632,94046.0,94044.0,0.0010856]
[1734989639726,0.212664,94045.0,94044.0,8.56e-05]
[1734989639782,0.10398632,94046.0,94044.0,8.56e-05]
[1734989639998,0.22730323,94045.0,94044.0,0.0010856]
[1734989640184,0.212664,94045.0,94044.0,8.56e-05]
[1734989640543,0.212664,94045.0,94044.0,0.0020856]
[1734989640745,0.31665032,94045.0,94044.0,0.0020856]
[1734989640955,0.10398632,94045.0,94044.0,0.0020856]
[1734989641391,0.10398632,94045.0,94044.0,0.0030856]
[1734989641594,0.15691595,94045.0,94044.0,0.0030856]
[1734989641795,0.15691595,94045.0,94044.0,0.0010856]
[1734989641995,0.15691595,94045.0,94044.0,0.0030856]
[1734989642436,0.30691595,94045.0,94044.0,0.0030856]
[1734989642641,0.0776,94067.0,94044.0,0.0050856]
[1734989642877,0.25398632,94061.0,94045.0,0.212664]
[1734989643234,0.212612,94068.0,94044.0,0.0050856]
[1734989643619,0.10398632,94067.0,94050.0,0.212652]
[1734989644048,0.10398632,94067.0,94045.0,0.212664]
[1734989644269,0.212632,94060.0,94044.0,8.56e-05]
[1734989644479,0.31661832,94059.0,94044.0,8.56e-05]
[1734989644687,0.213664,94045.0,94044.0,8.56e-05]
[1734989644890,0.31765032,94045.0,94044.0,8.56e-05]
[1734989645100,0.001,94045.0,94044.0,8.56e-05]
[1734989645319,0.212638,94057.0,94044.0,8.56e-05]
[1734989645527,0.10398632,94056.0,94044.0,8.56e-05]
[1734989645940,0.002,94045.0,94044.0,0.2127516]
[1734989646765,0.003,94057.0,94044.0,0.2127516]
[1734989647181,0.212653,94050.0,94044.0,8.56e-05]
[1734989647385,0.13565025,94049.0,94044.0,8.56e-05]
[1734989647801,0.003,94057.0,94044.0,8.56e-05]
[1734989648001,0.10398632,94056.0,94044.0,8.56e-05]
[1734989648208,0.10398632,94056.0,94044.0,0.0030856]
[1734989648400,0.10398632,94056.0,94044.0,8.56e-05]
[1734989648604,0.10398632,94056.0,94044.0,0.2127496]
[1734989648806,0.10398632,94056.0,94044.0,0.2157496]
[1734989649013,0.10398632,94056.0,94044.0,0.2137496]
[1734989649421,0.05292363,94056.0,94044.0,8.56e-05]
[1734989649629,0.001,94056.0,94050.0,0.21265]
[1734989650064,0.001,94056.0,94044.0,8.56e-05]
[1734989650065,0.002,94056.0,94046.0,0.212661]
[1734989650545,0.002,94056.0,94048.0,0.212656]
[1734989650773,0.002,94056.0,94048.0,0.138656]
[1734989651016,0.002,94056.0,94047.0,0.0793]
[1734989651306,0.212641,94055.0,94047.0,0.0793]
[1734989651548,0.212646,94053.0,94044.0,8.56e-05]
[1734989651787,0.10398632,94056.0,94044.0,8.56e-05]
[1734989652003,0.10498632,94056.0,94044.0,0.2127496]
[1734989652274,0.10598632,94056.0,94044.0,0.2127496]
[1734989652531,0.002,94056.0,94048.0,0.212656]
[1734989652781,0.001,94055.0,94053.0,0.212644]
[1734989653002,0.212628,94061.0,94044.0,8.56e-05]
[1734989653232,0.001,94056.0,94044.0,8.56e-05]
[1734989653690,0.001,94056.0,94045.0,0.212663]
[1734989653931,0.001,94056.0,94049.0,0.425308]
[1734989654159,0.001,94056.0,94055.0,0.338341]
[1734989655350,0.212582,94081.0,94055.0,0.34615673]
[1734989655603,0.425165,94081.0,94056.0,0.21370206]
[1734989655860,0.425165,94081.0,94056.0,0.212639]
[1734989656103,0.212593,94077.0,94056.0,0.212639]
[1734989656365,0.212629,94061.0,94055.0,0.012]
[1734989656587,0.212632,94059.0,94055.0,0.012]
[1734989656801,0.31661832,94059.0,94056.0,0.002]
[1734989657474,0.52925032,94059.0,94056.0,0.002]
[1734989657693,0.10398632,94059.0,94056.0,0.002]
[1734989657903,0.0001712,94069.0,94062.0,0.212624]
[1734989658338,0.02144772,94069.0,94056.0,0.003]
[1734989658548,0.0001712,94069.0,94057.0,0.077]
[1734989658740,0.0001712,94069.0,94062.0,0.212623]
[1734989659208,0.0001712,94069.0,94062.0,0.21214804]
[1734989659422,0.0001712,94069.0,94062.0,0.21314804]
[1734989659650,0.0001712,94069.0,94062.0,0.21314904]
[1734989659855,0.0001712,94069.0,94062.0,0.21514904]
[1734989660098,0.0001712,94069.0,94062.0,0.21314904]
[1734989660531,0.0001712,94069.0,94062.0,0.21514904]
[1734989661202,0.0001712,94069.0,94066.0,0.212615]
[1734989661459,0.0001712,94069.0,94062.0,0.21514904]
[1734989661671,0.0001712,94069.0,94062.0,0.42577404]
[1734989661881,0.0001712,94069.0,94062.0,0.21414904]
[1734989662089,0.0001712,94069.0,94062.0,0.21614904]
[1734989662304,0.0001712,94069.0,94062.0,0.21414904]
[1734989662696,0.0001712,94069.0,94062.0,0.21614904]